bitfinex/quotes_SOLUSD_20241118
["timestamp","ask_amount","ask_price","bid_price","bid_amount"]
[1731926224226,5.0,247.86,247.75,30.55967982]
[1731926224421,4.0346,247.85,247.75,30.55967982]
[1731926224613,34.59427982,247.85,247.73,30.55967982]
[1731926224809,0.1,247.7,247.46,6.5335]
[1731926225057,0.1,247.7,247.43,15.2315]
[1731926225058,30.55967982,247.56,247.45,30.55967982]
[1731926225637,30.55967982,247.52,247.41,30.55967982]
[1731926225948,30.55967982,247.5,247.39,30.55967982]
[1731926226524,0.1,247.59,247.39,30.55967982]
[1731926226717,0.1,247.59,247.33,0.1]
[1731926226718,30.55967982,247.47,247.37,30.55967982]
[1731926226917,30.55967982,247.43,247.33,30.55967982]
[1731926227126,30.55967982,247.41,247.28,0.1]
[1731926227317,30.55967982,247.41,247.31,30.55967982]
[1731926227620,4.0404,247.5,247.29,30.55967982]
[1731926227621,30.55967982,247.39,247.29,30.55967982]
[1731926227818,30.55967982,247.44,247.29,30.55967982]
[1731926228035,4.2404,247.5,247.29,30.55967982]
[1731926228036,30.55967982,247.39,247.29,30.55967982]
[1731926228350,30.55967982,247.41,247.31,30.55967982]
[1731926228513,15.4397,247.7,247.45,0.1]
[1731926228715,6.0559,247.74,247.45,0.1]
[1731926228716,30.55967982,247.65,247.56,0.09367462]
[1731926229017,30.55967982,247.65,247.45,0.07690802]
[1731926229018,34.59707982,247.68,247.38,0.17690802]
[1731926229221,30.55967982,247.56,247.35,0.1]
[1731926229428,34.69707982,247.68,247.42,0.22549]
[1731926229734,30.55967982,247.58,247.48,30.55967982]
[1731926230034,0.1,247.67,247.41,0.12549]
[1731926230035,30.55967982,247.6,247.49,30.55967982]
[1731926230237,30.55967982,247.6,247.5,0.09367462]
[1731926230426,30.55967982,247.68,247.5,0.09367462]
[1731926230427,30.55967982,247.58,247.5,0.09367462]
[1731926230813,30.55967982,247.58,247.48,0.09367462]
[1731926231015,30.55967982,247.62,247.5,30.55967982]
[1731926231231,30.55967982,247.6,247.48,30.55967982]
[1731926231439,30.55967982,247.62,247.5,30.55967982]
[1731926232128,0.1,247.81,247.58,30.55967982]
[1731926232439,30.55967982,247.69,247.62,0.1]
[1731926232732,0.09367462,247.83,247.66,0.1]
[1731926233037,30.55967982,247.7,247.66,0.1]
[1731926233221,30.55967982,247.7,247.65,0.1]
[1731926233729,30.55967982,247.7,247.63,0.1]
[1731926233934,30.55967982,247.8,247.59,0.07690802]
[1731926233935,30.55967982,247.68,247.6,0.1]
[1731926234237,30.55967982,247.68,247.59,0.07690802]
[1731926234238,30.55967982,247.68,247.62,0.1]
[1731926234619,30.55967982,247.68,247.57,30.73658784]
[1731926234941,30.55967982,247.66,247.6,0.1]
[1731926235145,6.3549,247.63,247.43,0.1]
[1731926235320,0.1,247.04,247.03,10.02001099]
[1731926235630,0.1,247.04,246.77,48.50702271]
[1731926235631,20.0,247.01,246.77,0.07690802]
[1731926235824,30.55967982,246.79,246.71,2.21305576]
[1731926236025,0.1,246.97,246.59,15.1296]
[1731926236026,30.55967982,246.74,246.59,15.1296]
[1731926236342,79.04530729,246.73,246.72,30.55967982]
[1731926236635,117.47461765,246.73,246.67,30.55967982]
[1731926236838,71.36871924,246.73,246.67,30.55967982]
[1731926237137,38.42931036,246.73,246.69,30.55967982]
[1731926237335,24.87993523,246.96,246.61,6.2604]
[1731926237336,30.55967982,246.78,246.61,6.2604]
[1731926237636,20.33384263,246.96,246.69,30.55967982]
[1731926237637,30.55967982,246.8,246.69,30.55967982]
[1731926238538,30.55967982,246.78,246.67,0.1]
[1731926238718,30.55967982,246.82,246.69,30.55967982]
[1731926238914,30.55967982,246.8,246.69,30.55967982]
[1731926239115,30.55967982,246.78,246.67,30.55967982]
[1731926239737,30.55967982,246.84,246.65,30.52963982]
[1731926239928,27.27967982,246.77,246.65,30.52963982]
[1731926240432,34.60897982,246.96,246.69,30.55967982]
[1731926240433,30.55967982,246.8,246.69,30.55967982]
[1731926240635,30.55967982,246.82,246.72,0.1]
[1731926240842,30.55967982,246.8,246.7,0.1]
[1731926241017,30.55967982,246.8,246.7,24.127864]
[1731926241643,30.55967982,246.82,246.73,0.25098]
[1731926241831,30.55967982,246.82,246.74,0.09367462]
[1731926242025,30.55967982,246.82,246.75,0.25098]
[1731926242226,30.55967982,246.84,246.76,0.09367462]
[1731926242440,30.55967982,246.84,246.78,0.09367462]
[1731926242632,30.55967982,246.92,246.8,30.55967982]
[1731926242820,30.55967982,246.9,246.8,30.55967982]
[1731926243018,30.55967982,246.95,246.84,30.55967982]
[1731926243322,16.6281,247.2,246.95,0.12549]
[1731926243640,0.1,247.23,246.95,0.12549]
[1731926243641,30.55967982,247.14,247.02,30.55967982]
[1731926243846,30.55967982,247.12,246.96,0.12549]
[1731926244036,30.55967982,247.16,247.06,30.55967982]
[1731926244521,30.55967982,247.2,247.1,30.55967982]
[1731926244720,30.55967982,247.22,247.12,30.55967982]
[1731926244941,30.55967982,247.24,247.13,0.12549]
[1731926245252,30.55967982,247.32,247.2,30.55967982]
[1731926245442,30.55967982,247.3,247.21,0.21916462]
[1731926245638,30.55967982,247.32,247.22,30.68516982]
[1731926245827,30.55967982,247.3,247.2,30.55967982]
[1731926246140,30.55967982,247.26,247.17,0.12549]
[1731926246340,30.55967982,247.26,247.15,16.1746]
[1731926246524,30.55967982,247.26,247.14,30.55967982]
[1731926246525,30.55967982,247.28,247.16,30.68516982]
[1731926246721,30.55967982,247.28,247.17,20.0]
[1731926246942,30.55967982,247.28,247.18,30.68516982]
[1731926247242,30.55967982,247.44,247.12,16.275803]
[1731926247243,30.55967982,247.34,247.23,20.12549]
[1731926247431,30.55967982,247.36,247.26,30.55967982]
[1731926247628,30.55967982,247.44,247.23,20.12549]
[1731926247629,30.55967982,247.34,247.23,20.12549]
[1731926247832,30.55967982,247.44,247.13,0.1]
[1731926247833,0.1,247.38,247.13,0.12549]
[1731926248137,0.2,247.38,247.03,0.1]
[1731926248341,0.1,247.37,247.09,16.175803]
[1731926248538,0.1,247.35,247.1,0.09367462]
[1731926248724,0.1,247.3,247.02,0.1]
[1731926248921,30.55967982,247.2,247.1,30.55967982]
[1731926249137,30.55967982,247.18,247.08,30.55967982]
[1731926249633,4.0439,247.29,246.96,30.55967982]
[1731926249634,30.55967982,247.16,247.06,30.55967982]
[1731926250231,30.55967982,247.09,247.0,30.55967982]
[1731926250434,30.55967982,247.09,246.98,30.55967982]
[1731926250637,0.1,247.19,246.96,30.55967982]
[1731926250638,30.55967982,247.07,246.96,30.55967982]
[1731926251030,30.55967982,247.02,246.87,16.191106]
[1731926251237,30.55967982,247.09,246.99,30.55967982]
[1731926251546,30.55967982,247.11,247.01,30.55967982]
[1731926252046,30.55967982,247.11,246.89,0.1]
[1731926252047,0.2,247.29,247.07,30.55967982]
[1731926252233,30.55967982,247.2,247.11,30.55967982]
[1731926252633,30.55967982,247.2,246.96,30.55967982]
[1731926252634,30.55967982,247.18,247.08,20.0]
[1731926252828,6.4267,247.26,247.06,20.0]
[1731926252829,30.55967982,247.16,247.06,20.0]
[1731926253350,30.55967982,247.12,247.01,30.55967982]
[1731926253527,30.55967982,247.08,246.99,30.55967982]
[1731926253733,30.55967982,247.14,247.04,30.55967982]
[1731926254144,30.55967982,247.14,247.02,30.55967982]
[1731926254334,30.55967982,247.12,247.02,30.55967982]
[1731926256437,30.55967982,247.12,247.01,20.0]
[1731926256855,30.55967982,247.09,247.01,20.0]
[1731926257055,4.1455,247.19,247.0,30.55967982]
[1731926257259,0.1,247.2,246.99,20.0]
[1731926257260,30.55967982,247.15,247.04,30.55967982]
[1731926257445,30.55967982,247.11,247.01,20.0]
[1731926257653,30.55967982,247.09,247.0,30.55967982]
[1731926258040,30.55967982,247.07,246.98,30.55967982]
[1731926258260,30.55967982,247.07,246.96,30.55967982]
[1731926258564,30.55967982,247.05,246.94,30.55967982]
[1731926258749,30.55967982,247.03,246.92,30.55967982]
[1731926259061,30.55967982,247.03,246.94,30.55967982]
[1731926259561,30.55967982,246.99,246.89,30.55967982]
[1731926260259,30.55967982,246.97,246.87,30.55967982]
[1731926260761,0.1,247.05,246.85,20.0]
[1731926260762,0.22549,247.05,246.85,20.0]
[1731926261053,0.22549,247.05,246.84,30.55967982]
[1731926261054,30.55967982,246.96,246.84,30.55967982]
[1731926261559,30.55967982,247.0,246.9,30.55967982]
[1731926261744,30.55967982,247.04,246.94,30.55967982]
[1731926261937,30.55967982,247.04,246.91,0.09367462]
[1731926261938,30.55967982,247.04,246.91,30.55967982]
[1731926262139,30.55967982,247.02,246.92,20.0]
[1731926262948,30.55967982,247.02,246.94,20.0]
[1731926263148,30.55967982,247.04,246.95,30.55967982]
[1731926263459,30.55967982,247.04,246.94,20.0]
[1731926263665,30.55967982,247.02,246.94,20.0]
[1731926264862,30.55967982,247.06,246.97,20.0]
[1731926265158,30.55967982,246.98,246.76,16.298197]
[1731926265349,30.55967982,246.9,246.8,30.55967982]
[1731926266344,30.55967982,246.9,246.81,20.0]
[1731926266538,30.55967982,246.9,246.78,30.55967982]
[1731926266763,30.55967982,246.86,246.76,46.75787682]
[1731926266942,30.55967982,246.84,246.76,16.198197]
[1731926267143,30.55967982,246.82,246.69,22.4291]
[1731926267354,30.55967982,246.82,246.71,30.55967982]
[1731926267957,23.902374,246.95,246.73,30.55967982]
[1731926268164,23.776884,246.95,246.73,30.55967982]
[1731926268366,30.55967982,246.84,246.74,0.09367462]
[1731926268659,30.55967982,246.82,246.71,30.55967982]
[1731926269446,30.55967982,246.82,246.74,0.09367462]
[1731926269854,30.55967982,246.84,246.74,0.09367462]
[1731926270057,30.55967982,246.84,246.74,0.21916462]
[1731926270259,30.55967982,246.84,246.74,20.21916462]
[1731926270654,30.55967982,246.84,246.76,0.09367462]
[1731926270853,30.55967982,246.84,246.73,30.55967982]
[1731926271057,30.55967982,246.81,246.71,30.55967982]
[1731926271261,30.55967982,246.83,246.73,30.55967982]
[1731926271772,30.55967982,246.83,246.74,0.09367462]
[1731926272452,30.55967982,246.83,246.74,0.21916462]
[1731926272860,30.55967982,246.83,246.74,0.09367462]
[1731926273251,30.55967982,246.81,246.72,20.0]
[1731926274471,30.55967982,246.81,246.73,0.09367462]
[1731926274778,30.55967982,246.85,246.76,0.09367462]
[1731926274959,30.55967982,246.83,246.73,30.55967982]
[1731926275474,30.55967982,246.85,246.74,0.09367462]
[1731926275871,30.55967982,246.83,246.71,20.0]
[1731926276076,30.55967982,246.81,246.7,30.55967982]
[1731926276259,30.55967982,246.79,246.66,30.55967982]
[1731926276463,30.55967982,246.79,246.68,30.55967982]
[1731926277077,30.55967982,246.81,246.7,30.55967982]
[1731926277278,30.55967982,246.85,246.73,0.09367462]
[1731926277662,30.55967982,246.85,246.75,0.09367462]
[1731926277870,30.55967982,246.87,246.75,0.09367462]
[1731926278562,30.55967982,246.87,246.76,30.55967982]
[1731926278774,30.55967982,246.87,246.75,0.09367462]
[1731926278972,30.55967982,246.87,246.76,30.55967982]
[1731926279791,30.55967982,246.87,246.77,0.09367462]
[1731926280083,30.55967982,246.87,246.74,30.55967982]
[1731926280371,30.55967982,246.87,246.76,30.55967982]
[1731926280586,30.55967982,246.91,246.8,30.55967982]
[1731926280883,30.55967982,246.89,246.78,30.55967982]
[1731926282078,30.55967982,246.87,246.76,30.55967982]
[1731926282775,30.55967982,246.85,246.74,30.55967982]
[1731926283171,23.776884,246.84,246.74,30.55967982]
[1731926283379,30.55967982,246.83,246.74,30.55967982]
[1731926284269,23.776884,246.84,246.74,30.55967982]
[1731926284666,30.55967982,246.85,246.74,30.55967982]
[1731926285585,30.55967982,246.85,246.76,30.55967982]
[1731926286073,4.79446474,246.95,246.76,30.55967982]
[1731926286074,30.55967982,246.87,246.76,30.55967982]
[1731926286386,4.79446474,246.95,246.59,6.2954]
[1731926286387,30.55967982,246.89,246.78,30.55967982]
[1731926286693,30.55967982,246.87,246.78,30.55967982]
[1731926286983,30.55967982,246.85,246.76,30.55967982]
[1731926287567,30.55967982,246.85,246.74,30.55967982]
[1731926287768,30.55967982,246.81,246.7,30.55967982]
[1731926288272,30.55967982,246.81,246.72,30.55967982]
[1731926288790,30.55967982,246.87,246.76,30.55967982]
[1731926289091,30.55967982,246.88,246.78,30.55967982]
[1731926289474,4.0498,246.93,246.8,30.55967982]
[1731926289673,30.55967982,246.88,246.78,30.55967982]
[1731926291982,30.55967982,246.86,246.76,30.55967982]
[1731926292481,30.55967982,246.88,246.78,30.55967982]
[1731926292685,30.55967982,246.88,246.8,30.55967982]
[1731926292875,30.55967982,246.88,246.72,30.55967982]
[1731926292876,30.55967982,246.88,246.78,30.55967982]
[1731926293586,30.55967982,246.88,246.8,30.55967982]
[1731926293787,30.55967982,246.9,246.8,30.55967982]
[1731926294175,30.55967982,246.88,246.78,30.55967982]
[1731926294889,30.55967982,246.88,246.76,30.55967982]
[1731926295581,30.55967982,246.86,246.76,30.55967982]
[1731926296869,30.55967982,246.84,246.74,30.55967982]
[1731926297075,30.55967982,246.86,246.74,30.55967982]
[1731926297992,30.55967982,246.86,246.76,30.55967982]
[1731926299191,30.55967982,246.86,246.76,33.6659324]
[1731926299376,30.55967982,246.88,246.76,33.6659324]
[1731926300599,30.55967982,246.9,246.78,30.55967982]
[1731926300888,30.55967982,246.9,246.8,30.55967982]
[1731926301479,30.55967982,246.9,246.81,0.09367462]
[1731926301687,30.55967982,246.94,246.86,30.55967982]
[1731926302198,30.55967982,246.96,246.88,30.55967982]
[1731926302499,30.55967982,246.98,246.88,30.55967982]
[1731926303276,30.55967982,246.98,246.76,3.10625258]
[1731926303277,30.55967982,247.04,246.95,30.55967982]
[1731926303481,10.3161,247.13,246.84,30.55967982]
[1731926303482,16.193832,247.19,247.02,30.55967982]
[1731926303691,30.55967982,247.1,247.02,30.55967982]
[1731926303876,30.55967982,247.08,246.98,30.55967982]
[1731926304087,30.55967982,247.06,246.96,30.55967982]
[1731926304393,30.55967982,247.04,246.96,30.55967982]
[1731926305983,30.55967982,247.06,246.96,30.55967982]
[1731926306184,30.55967982,247.06,246.98,30.55967982]
[1731926306492,4.0467,247.12,246.92,30.55967982]
[1731926306493,30.55967982,247.02,246.92,30.55967982]
[1731926306680,30.55967982,247.08,246.9,30.55967982]
[1731926306681,30.55967982,246.99,246.9,30.55967982]
[1731926306883,30.55967982,247.01,246.92,30.55967982]
[1731926308605,30.55967982,247.03,246.92,30.55967982]
[1731926308788,30.55967982,247.05,246.95,30.55967982]
[1731926309409,30.55967982,247.05,246.96,0.09367462]
[1731926309700,30.55967982,247.05,246.97,30.55967982]
[1731926310284,30.55967982,247.05,246.95,30.55967982]
[1731926311792,30.55967982,247.03,246.93,30.55967982]
[1731926311990,30.55967982,247.01,246.91,30.55967982]
[1731926312300,30.55967982,247.03,246.94,0.09367462]
[1731926312801,30.55967982,247.03,246.95,30.55967982]
[1731926312984,30.55967982,247.05,246.95,30.55967982]
[1731926313592,30.55967982,247.05,246.96,0.09367462]
[1731926313900,30.55967982,247.07,246.97,30.55967982]
[1731926314200,30.55967982,247.09,247.0,0.09367462]
[1731926314499,18.88053601,247.07,247.0,0.09367462]
[1731926314892,18.88053601,247.07,246.97,18.88053601]
[1731926314893,18.88053601,247.07,246.98,0.09367462]
[1731926315498,18.88053601,247.01,246.91,18.88053601]
[1731926316290,18.88053601,247.03,246.94,0.09367462]
[1731926316492,18.88053601,247.05,246.96,0.09367462]
[1731926317201,18.88053601,247.05,246.96,0.21916462]
[1731926317408,18.88053601,247.05,246.96,0.09367462]
[1731926318196,18.88053601,247.01,246.91,18.88053601]
[1731926318391,18.88053601,247.01,246.92,0.09367462]
[1731926319809,18.88053601,247.03,246.94,0.09367462]
[1731926320002,18.88053601,247.05,246.96,0.09367462]
[1731926321218,18.88053601,247.08,246.98,18.88053601]
[1731926323019,18.88053601,247.15,247.06,0.09367462]
[1731926323209,18.88053601,247.15,247.05,18.88053601]
[1731926324707,18.88053601,247.17,247.07,18.88053601]
[1731926324900,18.88053601,247.15,247.05,18.88053601]
[1731926325807,18.88053601,247.17,247.07,18.88053601]
[1731926326009,18.88053601,247.19,247.07,18.88053601]
[1731926326201,18.88053601,247.19,247.09,18.88053601]
[1731926328714,0.1,247.29,246.99,0.21916462]
[1731926328715,6.2857,247.3,247.17,18.88053601]
[1731926328899,6.2857,247.3,247.2,18.88053601]
[1731926329099,4.1429,247.35,247.2,18.88053601]
[1731926329423,18.88053601,247.3,247.2,18.88053601]
[1731926330114,23.776884,247.29,247.2,18.88053601]
[1731926331207,18.88053601,247.28,247.18,18.88053601]
[1731926331410,18.88053601,247.37,247.27,18.88053601]
[1731926331603,18.88053601,247.37,247.29,18.88053601]
[1731926331798,10.3271,247.44,247.31,18.88053601]
[1731926332018,18.88053601,247.41,247.31,18.88053601]
[1731926332516,18.88053601,247.45,247.35,18.88053601]
[1731926333098,87.5,247.5,247.39,18.88053601]
[1731926333309,0.1,247.48,247.39,18.88053601]
[1731926333714,18.98053601,247.48,247.37,18.88053601]
[1731926334111,87.5,247.5,247.37,18.88053601]
[1731926334312,87.5,247.5,247.22,0.09367462]
[1731926334313,87.5,247.5,247.49,18.88053601]
[1731926334702,87.5,247.5,247.49,18.97421063]
[1731926336018,87.5,247.5,247.49,19.09970063]
[1731926336625,87.5,247.5,247.38,0.25098]
[1731926336806,87.5,247.5,247.42,16.158964]
[1731926337000,87.5,247.5,247.38,0.25098]
[1731926337001,87.5,247.5,247.49,18.88053601]
[1731926337313,75.1,247.86,247.54,20.0]
[1731926337517,9.0346,247.86,247.69,18.88053601]
[1731926337710,18.88053601,247.78,247.67,18.88053601]
[1731926338028,9.0346,247.86,247.56,18.88053601]
[1731926338029,18.88053601,247.76,247.65,18.88053601]
[1731926338402,18.88053601,247.78,247.67,18.88053601]
[1731926339005,18.88053601,247.78,247.69,18.88053601]
[1731926339219,6.1525,247.79,247.69,18.88053601]
[1731926339834,18.88053601,247.8,247.69,18.88053601]
[1731926340134,18.88053601,247.78,247.67,18.88053601]
[1731926340316,30.5164666,247.78,247.67,30.5164666]
[1731926340627,30.5164666,247.76,247.65,30.5164666]
[1731926340812,30.5164666,247.76,247.56,30.5164666]
[1731926340813,30.5164666,247.74,247.63,30.5164666]
[1731926341011,30.5164666,247.7,247.59,30.5164666]
[1731926341217,30.5164666,247.7,247.6,16.147102]
[1731926341626,30.5164666,247.61,247.51,30.5164666]
[1731926342014,30.5164666,247.61,247.53,30.5164666]
[1731926342605,30.5164666,247.59,247.5,75.434]
[1731926342808,30.5164666,247.61,247.51,30.5164666]
[1731926344511,30.5164666,247.61,247.54,30.5164666]
[1731926345029,30.5164666,247.61,247.53,30.5164666]
[1731926345235,30.5164666,247.61,247.51,30.5164666]
[1731926345429,30.5164666,247.57,247.5,75.0]
[1731926346341,5.0,247.86,247.56,61.1329332]
[1731926346516,35.5164666,247.86,247.58,0.1]
[1731926346841,30.5164666,247.84,247.73,30.5164666]
[1731926347421,35.5164666,247.86,247.75,30.5164666]
[1731926347621,30.5164666,247.84,247.73,30.5164666]
[1731926347822,30.5164666,247.81,247.71,30.5164666]
[1731926348015,30.5164666,247.81,247.59,5.06433]
[1731926348016,5.0,247.86,247.79,30.5164666]
[1731926349644,5.0,247.86,247.81,30.5164666]
[1731926350635,5.0,247.86,247.77,30.5164666]
[1731926351818,5.0,247.86,247.79,30.5164666]
[1731926352322,5.0,247.86,247.69,0.09367462]
[1731926352323,5.0,247.86,247.83,30.5164666]
[1731926353324,5.0,247.86,247.79,30.5164666]
[1731926353825,5.0,247.86,247.81,30.5164666]
[1731926354015,5.0,247.86,247.83,30.5164666]
[1731926355031,5.0,247.86,247.8,30.5164666]
[1731926355739,5.0,247.86,247.82,30.5164666]
[1731926355937,44.027864,248.0,247.69,0.09367462]
[1731926356235,30.5164666,247.93,247.83,30.5164666]
[1731926356421,30.6419566,247.91,247.81,30.5164666]
[1731926356617,30.5164666,247.91,247.81,30.5164666]
[1731926356846,23.776884,247.9,247.81,30.5164666]
[1731926357429,30.5164666,247.91,247.81,30.5164666]
[1731926358321,30.5164666,247.93,247.83,30.5164666]
[1731926358922,23.776884,247.94,247.85,30.5164666]
[1731926359550,23.776884,247.92,247.83,30.5164666]
[1731926360176,23.776884,247.9,247.66,0.09367462]
[1731926360348,4.0332,247.94,247.66,0.09367462]
[1731926360349,70.0,248.06,247.72,0.1]
[1731926360554,70.0,248.06,247.93,18.76198841]
[1731926360555,18.76198841,248.03,247.93,18.76198841]
[1731926360844,4.27404,248.01,247.89,18.76198841]
[1731926361046,18.76198841,247.99,247.89,18.76198841]
[1731926361729,4.0323,248.0,247.91,18.76198841]
[1731926362242,42.66436241,247.99,247.74,0.34465462]
[1731926362418,42.66436241,247.99,247.89,18.76198841]
[1731926362623,19.00392841,248.01,247.91,18.76198841]
[1731926362822,0.24194,248.01,247.91,18.76198841]
[1731926363749,0.24194,248.01,247.93,18.76198841]
[1731926364044,24.018824,248.01,247.93,18.76198841]
[1731926364241,24.018824,248.01,247.95,18.76198841]
[1731926364454,0.24194,248.01,247.95,18.76198841]
[1731926364835,0.24194,248.01,247.97,18.76198841]
[1731926366553,0.24194,248.01,247.95,18.76198841]
[1731926367244,0.24194,248.01,247.99,18.76198841]
[1731926368953,0.24194,248.01,248.0,18.76198841]
[1731926369143,18.76198841,248.16,247.85,5.06432993]
[1731926369343,18.76198841,248.19,248.09,18.76198841]
[1731926369653,18.76198841,248.19,248.07,18.76198841]
[1731926369654,18.76198841,248.17,248.07,18.76198841]
[1731926369840,18.76198841,248.13,247.8,6.5182]
[1731926370022,14.2021,248.19,247.98,18.76198841]
[1731926370221,18.76198841,248.09,247.98,18.76198841]
[1731926370631,4.0292,248.19,248.02,18.76198841]
[1731926370836,18.76198841,248.13,248.02,18.76198841]
[1731926371035,0.1,248.21,248.02,18.76198841]
[1731926371241,18.76198841,248.11,248.0,18.76198841]
[1731926371548,18.76198841,248.09,247.98,18.76198841]
[1731926371930,18.76198841,248.07,247.96,18.76198841]
[1731926372129,0.1,248.21,247.96,18.76198841]
[1731926372338,0.1,248.21,247.92,18.76198841]
[1731926372339,18.76198841,248.16,247.92,18.76198841]
[1731926372634,18.76198841,248.16,247.72,201.84489268]
[1731926372635,18.76198841,248.05,247.94,18.76198841]
[1731926372825,18.76198841,248.03,247.92,18.76198841]
[1731926373023,28.76198841,248.03,247.92,18.76198841]
[1731926373640,18.76198841,248.01,247.9,18.76198841]
[1731926373933,18.76198841,247.99,247.88,18.76198841]
[1731926374236,18.76198841,247.97,247.88,18.76198841]
[1731926374440,18.76198841,247.97,247.86,18.76198841]
[1731926374649,18.76198841,248.04,247.68,18.76198841]
[1731926374650,18.76198841,247.95,247.73,1.713326]
[1731926374842,18.76198841,247.93,247.82,18.76198841]
[1731926375345,18.76198841,247.91,247.71,0.1]
[1731926375644,23.902374,247.98,247.8,18.76198841]
[1731926375855,18.76198841,247.9,247.78,18.76198841]
[1731926376153,18.76198841,247.88,247.78,18.76198841]
[1731926376444,18.76198841,247.84,247.74,18.76198841]
[1731926376646,18.76198841,247.84,247.68,10.02473794]
[1731926376647,18.76198841,247.84,247.72,18.76198841]
[1731926376839,18.76198841,247.82,247.7,18.76198841]
[1731926377148,18.76198841,247.86,247.76,18.76198841]
[1731926378647,18.76198841,247.84,247.72,18.76198841]
[1731926379049,18.76198841,247.82,247.72,18.76198841]
[1731926379351,18.76198841,247.82,247.7,18.76198841]
[1731926379541,18.76198841,247.82,247.72,18.76198841]
[1731926379847,18.76198841,247.84,247.72,18.76198841]
[1731926380052,18.76198841,247.82,247.7,18.76198841]
[1731926380235,18.76198841,247.8,247.7,18.76198841]
[1731926380638,18.76198841,247.84,247.72,18.76198841]
[1731926381057,18.76198841,247.82,247.72,18.76198841]
[1731926381437,18.76198841,247.8,247.7,18.76198841]
[1731926382350,18.76198841,247.82,247.72,18.76198841]
[1731926382540,18.76198841,247.84,247.72,18.76198841]
[1731926382736,18.76198841,247.84,247.74,18.76198841]
[1731926382936,18.76198841,247.82,247.72,18.76198841]
[1731926383445,18.76198841,247.82,247.67,0.09367462]
[1731926383446,18.76198841,247.86,247.74,18.76198841]
[1731926383654,4.0337,247.91,247.74,18.76198841]
[1731926383655,18.76198841,247.84,247.74,18.76198841]
[1731926384159,18.76198841,247.8,247.7,18.76198841]
[1731926384944,18.76198841,247.8,247.6,0.1]
[1731926384945,18.76198841,247.78,247.68,18.76198841]
[1731926385855,18.76198841,247.82,247.72,18.76198841]
[1731926386060,0.2,247.82,247.73,18.76198841]
[1731926386443,0.1,247.8,247.71,18.76198841]
[1731926386636,0.2,247.8,247.71,18.76198841]
[1731926387147,0.1,247.8,247.71,18.76198841]
[1731926387346,0.1,247.8,247.73,18.76198841]
[1731926387758,0.1,247.79,247.73,18.76198841]
[1731926387938,0.1,247.78,247.71,18.76198841]
[1731926388567,6.2899,248.27,247.86,0.1]
[1731926388740,34.11368841,248.26,248.12,18.76198841]
[1731926389044,44.11368841,248.26,248.12,18.76198841]
[1731926389237,25.3517,248.26,248.14,18.76198841]
[1731926389437,44.11368841,248.26,248.14,18.76198841]
[1731926390187,25.3517,248.26,248.18,18.76198841]
[1731926390358,18.76198841,248.24,248.12,18.76198841]
[1731926390664,18.76198841,248.18,248.07,18.76198841]
[1731926390846,18.76198841,248.16,248.05,18.76198841]
[1731926391157,0.1,248.2,247.92,18.76198841]
[1731926391158,18.76198841,248.1,247.99,18.76198841]
[1731926391364,18.76198841,248.12,247.99,18.76198841]
[1731926391542,10.0,248.09,248.06,18.76198841]
[1731926392041,10.0,248.09,248.08,18.76198841]
[1731926393363,15.3517,248.26,248.09,0.09367462]
[1731926393562,18.76198841,248.19,248.08,18.76198841]
[1731926394063,18.76198841,248.21,248.1,18.76198841]
[1731926394372,18.76198841,248.21,248.12,18.76198841]
[1731926394659,18.76198841,248.23,248.12,18.76198841]
[1731926394850,18.76198841,248.23,248.14,18.76198841]
[1731926395163,25.05188841,248.27,248.17,0.09367462]
[1731926395361,25.05188841,248.27,248.18,18.76198841]
[1731926395546,25.05188841,248.27,248.16,18.76198841]
[1731926396148,25.05188841,248.27,248.05,4.7742932]
[1731926396149,16.6028,248.37,248.19,18.76198841]
[1731926396351,16.6028,248.37,248.21,18.76198841]
[1731926396352,18.76198841,248.31,248.21,18.76198841]
[1731926396561,18.76198841,248.3,248.22,4.92616411]
[1731926397151,18.76198841,248.32,248.23,18.76198841]
[1731926397359,18.76198841,248.32,248.22,4.92616411]
[1731926397559,18.76198841,248.32,248.23,18.76198841]
[1731926397944,16.6028,248.37,248.22,4.92616411]
[1731926397945,18.26198841,248.3,248.22,4.92616411]
[1731926398354,18.76198841,248.32,248.23,18.76198841]
[1731926398555,18.76198841,248.3,248.22,4.92616411]
[1731926398863,18.76198841,248.28,248.19,18.76198841]
[1731926399162,18.76198841,248.25,248.15,18.76198841]
[1731926399367,4.12047462,248.33,248.15,18.76198841]
[1731926399556,4.12047462,248.33,248.13,18.76198841]
[1731926399557,19.01296841,248.22,248.13,18.76198841]
[1731926399862,18.76198841,248.14,248.05,18.76198841]
[1731926400173,18.76198841,248.14,247.85,21.055524]
[1731926400174,23.527864,248.07,247.85,16.126924]
[1731926400368,18.76198841,248.1,248.01,18.76198841]